fUSD/lending_fUSD_20251206
["ID","MTS","AMOUNT","RATE_DAILY","PERIOD"]
[396477163,1764983439247,-192.66328889,0.00017999,2]
[396477164,1764983439257,-279.58163363,0.00017999,2]
[396477165,1764983439267,-500.0,0.00017999,2]
[396477166,1764983439276,-500.0,0.00017999,2]
[396477167,1764983439287,-424.10089585,0.00017999,2]
[396477168,1764983439297,-300.0,0.00017999,2]
[396477169,1764983439307,-150.0,0.00017999,2]
[396477170,1764983439317,-674481.50054862,0.00018,2]
[396477171,1764983439328,-135543.14,0.00018,2]
[396477172,1764983439342,-41698.7569916,0.00018,2]
[396477173,1764983439352,-200.0,0.00018,2]
[396477174,1764983439362,-200.0,0.00018,2]
[396477175,1764983439371,-200.0,0.00018,2]
[396477176,1764983439381,-152.0,0.00018,2]
[396477177,1764983439390,-152.0,0.00018,2]
[396477178,1764983439399,-152.0,0.00018,2]
[396477179,1764983439408,-152.0,0.00018,2]
[396477180,1764983439419,-152.0,0.00018,2]
[396477181,1764983439428,-152.0,0.00018,2]
[396477182,1764983439438,-152.0,0.00018,2]
[396477183,1764983439447,-152.0,0.00018,2]
[396477184,1764983439456,-152.0,0.00018,2]
[396477185,1764983439466,-152.0,0.00018,2]
[396477186,1764983439476,-152.0,0.00018,2]
[396477187,1764983439486,-152.0,0.00018,2]
[396477188,1764983439495,-152.0,0.00018,2]
[396477189,1764983439505,-152.0,0.00018,2]
[396477190,1764983439515,-152.0,0.00018,2]
[396477191,1764983439524,-2389.1569577,0.00018,2]
[396477192,1764983439534,-234.49545628,0.00018,2]
[396477194,1764983439543,-1251.0,0.00018,2]
[396477196,1764983439553,-832.0,0.00018,2]
[396477197,1764983439562,-832.0,0.00018,2]
[396477198,1764983439571,-153.0,0.00018,2]
[396477199,1764983439581,-153.0,0.00018,2]
[396477200,1764983439590,-964.58999762,0.00018,2]
[396477201,1764983439600,-153.0,0.00018,2]
[396477202,1764983439610,-832.0,0.00018,2]
[396477203,1764983439620,-153.0,0.00018,2]
[396477204,1764983439629,-832.0,0.00018,2]
[396477205,1764983439638,-153.0,0.00018,2]
[396477206,1764983439647,-832.0,0.00018,2]
[396477207,1764983439657,-153.0,0.00018,2]
[396477208,1764983439666,-153.0,0.00018,2]
[396477209,1764983439675,-153.0,0.00018,2]
[396477210,1764983439685,-153.0,0.00018,2]
[396477211,1764983439696,-1251.0,0.00018,2]
[396477212,1764983439706,-1251.0,0.00018,2]
[396477213,1764983439715,-1251.0,0.00018,2]
[396477214,1764983439724,-1251.0,0.00018,2]
[396477215,1764983439734,-1251.0,0.00018,2]
[396477216,1764983439745,-1251.0,0.00018,2]
[396477217,1764983439754,-1251.0,0.00018,2]
[396477218,1764983439764,-1251.0,0.00018,2]
[396477219,1764983439774,-1251.0,0.00018,2]
[396477220,1764983439787,-1251.0,0.00018,2]
[396477221,1764983439804,-1251.0,0.00018,2]
[396477222,1764983439814,-1251.0,0.00018,2]
[396477223,1764983439823,-1251.0,0.00018,2]
[396477224,1764983439833,-1251.0,0.00018,2]
[396477225,1764983439843,-1251.0,0.00018,2]
[396477226,1764983439853,-1251.0,0.00018,2]
[396477227,1764983439865,-1251.0,0.00018,2]
[396477228,1764983439875,-1251.0,0.00018,2]
[396477229,1764983439886,-1251.0,0.00018,2]
[396477230,1764983439896,-1251.0,0.00018,2]
[396477231,1764983439907,-1251.0,0.00018,2]
[396477232,1764983439917,-1251.0,0.00018,2]
[396477233,1764983439927,-1251.0,0.00018,2]
[396477234,1764983439937,-1251.0,0.00018,2]
[396477235,1764983439947,-1251.0,0.00018,2]
[396477236,1764983439957,-867.44844897,0.00018,2]
[396477237,1764983439969,-1251.0,0.00018,2]
[396477238,1764983439978,-1251.0,0.00018,2]
[396477239,1764983439988,-1251.0,0.00018,2]
[396477240,1764983439998,-638.84493191,0.00018,2]
[396477241,1764983440008,-265.39646338,0.00018,2]
[396477242,1764983440017,-1251.0,0.00018,2]
[396477243,1764983440028,-1251.0,0.00018,2]
[396477244,1764983440038,-1251.0,0.00018,2]
[396477245,1764983440048,-152.0,0.00018,2]
[396477246,1764983440057,-1251.0,0.00018,2]
[396477247,1764983440068,-152.0,0.00018,2]
[396477248,1764983440077,-1251.0,0.00018,2]
[396477249,1764983440087,-832.0,0.00018,2]
[396477250,1764983440098,-1251.0,0.00018,2]
[396477251,1764983440108,-832.0,0.00018,2]
[396477252,1764983440118,-1251.0,0.00018,2]
[396477253,1764983440127,-832.0,0.00018,2]
[396477254,1764983440137,-152.0,0.00018,2]
[396477255,1764983440147,-1251.0,0.00018,2]
[396477256,1764983440157,-832.0,0.00018,2]
[396477257,1764983440166,-152.0,0.00018,2]
[396477258,1764983440176,-832.0,0.00018,2]
[396477259,1764983440185,-152.0,0.00018,2]
[396477260,1764983440195,-1251.0,0.00018,2]
[396477261,1764983440205,-832.0,0.00018,2]
[396477262,1764983440216,-152.0,0.00018,2]
[396477263,1764983440225,-1251.0,0.00018,2]
[396477264,1764983440235,-152.0,0.00018,2]
[396477265,1764983440245,-152.0,0.00018,2]
[396477266,1764983440255,-152.0,0.00018,2]
[396477267,1764983440264,-152.0,0.00018,2]
[396477268,1764983440274,-152.0,0.00018,2]
[396477269,1764983440283,-152.0,0.00018,2]
[396477270,1764983440292,-152.0,0.00018,2]
[396477271,1764983440302,-152.0,0.00018,2]
[396477272,1764983440323,-152.0,0.00018,2]
[396477273,1764983440340,-152.0,0.00018,2]
[396477274,1764983440350,-152.0,0.00018,2]
[396477275,1764983440359,-152.0,0.00018,2]
[396477276,1764983440370,-166.66,0.00018078,2]
[396477277,1764983440381,-1000.0,0.00018082,2]
[396477278,1764983440391,-1523.1,0.00018086,2]
[396477279,1764983440401,-500.0,0.0001811,2]
[396477280,1764983440411,-1093.0,0.0001813,2]
[396477281,1764983440422,-150.0,0.0001813,2]
[396477282,1764983440432,-153.50632756,0.0001813,2]
[396477283,1764983440441,-150.0,0.0001813,2]
[396477284,1764983440451,-150.0,0.0001813,2]
[396477285,1764983440462,-150.0,0.0001813,2]
[396477286,1764983440471,-500.0,0.0001813,2]
[396477287,1764983440481,-500.0,0.0001813,2]
[396477288,1764983440491,-500.0,0.0001813,2]
[396477289,1764983440500,-200.0,0.0001813,2]
[396477290,1764983440509,-500.0,0.0001813,2]
[396477291,1764983440519,-150.0,0.0001813,2]
[396477292,1764983440772,-482.0,0.0001813,2]
[396477293,1764983440783,-500.0,0.0001813,2]
[396477294,1764983440793,-24922.80532159,0.00018229,2]
[396477295,1764983440803,-1093.0,0.00018267,2]
[396477296,1764983440814,-150.0,0.00018267,2]
[396477297,1764983440824,-150.0,0.00018267,2]
[396477298,1764983440833,-200.0,0.00018267,2]
[396477299,1764983440842,-248.83893305,0.00018267,2]
[396477300,1764983440852,-500.0,0.00018267,2]
[396477301,1764983440861,-452.93107866,0.00018267,2]
[396477302,1764983440870,-500.0,0.00018267,2]
[396477303,1764983440880,-150.0,0.00018267,2]
[396477304,1764983440889,-482.0,0.00018267,2]
[396477305,1764983440900,-500.0,0.00018267,2]
[396477306,1764983440911,-40934.98605067,0.00018286,2]
[396477307,1764983440921,-1523.1,0.0001836,2]
[396477308,1764983440931,-363.51,0.00018403,2]
[396477309,1764983440940,-1093.0,0.00018404,2]
[396477310,1764983440950,-202.87576171,0.00018404,2]
[396477311,1764983440959,-200.0,0.00018404,2]
[396477312,1764983440969,-303.73471508,0.00018404,2]
[396477313,1764983440978,-450.0,0.00018404,2]
[396477314,1764983440988,-482.0,0.00018404,2]
[396477315,1764983440998,-500.0,0.00018404,2]
[396477316,1764983441010,-500.0,0.00018437,2]
[396477317,1764983441020,-200.0,0.00018437,2]
[396477318,1764983441030,-227.93158607,0.00018437,2]
[396477319,1764983441039,-216.05197037,0.0001853,7]
[396477320,1764983441049,-1093.0,0.00018541,2]
[396477321,1764983441058,-482.0,0.00018541,2]
[396477322,1764983441067,-200.0,0.00018541,2]
[396477323,1764983441077,-1523.1,0.00018634,2]
[396477324,1764983441086,-1093.0,0.00018678,2]
[396477325,1764983441096,-482.0,0.00018678,2]
[396477326,1764983441105,-1600.0,0.00018687,2]
[396477327,1764983441114,-1000.0,0.0001876,2]
[396477328,1764983441124,-193.83152329,0.00018766,2]
[396477329,1764983441133,-150.83,0.000188,2]
[396477330,1764983441143,-1093.0,0.00018815,2]
[396477331,1764983441153,-482.0,0.00018815,2]
[396477332,1764983441162,-1081.96771433,0.00018822,2]
[396477333,1764983441172,-153.63,0.00018845,2]
[396477334,1764983441182,-1523.1,0.00018908,2]
[396477335,1764983441192,-629.27,0.00018939,2]
[396477336,1764983441201,-1093.0,0.00018952,2]
[396477337,1764983441211,-482.0,0.00018952,2]
[396477338,1764983441221,-221.07359556,0.00018985,2]
[396477339,1764983441230,-151.0,0.00018989,2]
[396477340,1764983441239,-5263.41581334,0.00019,2]
[396477341,1764983441248,-24922.80532159,0.0001902,2]
[396477342,1764983441258,-40934.98605067,0.0001907,2]
[396477343,1764983441267,-177.62952427,0.00019079,2]
[396477344,1764983441276,-1093.0,0.00019089,2]
[396477345,1764983441286,-482.0,0.00019089,2]
[396477346,1764983441295,-485.9050002,0.00019104,2]
[396477347,1764983441304,-1000.0,0.00019156,2]
[396477348,1764983441314,-151.0,0.00019178,2]
[396477349,1764983441324,-151.0,0.00019178,2]
[396477350,1764983441336,-1523.1,0.00019182,2]
[396477351,1764983441345,-4739.0,0.00019185,2]
[396477352,1764983441355,-1093.0,0.00019226,2]
[396477353,1764983441364,-482.0,0.00019226,2]
[396477354,1764983441375,-363.51,0.00019323,2]
[396477355,1764983441384,-9999.99,0.00019339,2]
[396477356,1764983441393,-510.76,0.00019339,2]
[396477357,1764983441404,-308.45,0.00019339,2]
[396477358,1764983441415,-19999.99,0.00019339,2]
[396477359,1764983441425,-1192.08,0.00019339,2]
[396477360,1764983441435,-150.99,0.00019339,2]
[396477361,1764983441444,-299.99,0.00019339,7]
[396477362,1764983441454,-150.99,0.00019339,2]
[396477363,1764983441464,-1093.0,0.00019363,2]
[396477364,1764983441473,-482.0,0.00019363,2]
[396477365,1764983441483,-587.0,0.00019371,2]
[396477366,1764983441492,-348.0,0.00019371,2]
[396477367,1764983441502,-1000.0,0.00019438,2]
[396477368,1764983441511,-1523.1,0.00019456,2]
[396477369,1764983441520,-3547.4411719,0.00019457,2]
[396477370,1764983441529,-1093.0,0.000195,2]
[396477371,1764983441539,-482.0,0.000195,2]
[396477372,1764983441548,-2351.0,0.00019551,2]
[396477373,1764983441557,-1093.0,0.00019637,2]
[396477374,1764983441566,-482.0,0.00019637,2]
[396477375,1764983441576,-156.587,0.00019726,2]
[396477376,1764983441585,-1523.1,0.0001973,2]
[396477377,1764983441595,-1093.0,0.00019774,2]
[396477378,1764983441605,-482.0,0.00019774,2]
[396477379,1764983441614,-24922.80532159,0.00019811,2]
[396477380,1764983441623,-153.63,0.00019837,2]
[396477381,1764983441633,-1494.68360192,0.00019853,2]
[396477382,1764983441642,-40934.98605067,0.00019854,2]
[396477383,1764983441652,-250.0,0.00019863,2]
[396477384,1764983441661,-1173.61405499,0.000199,2]
[396477385,1764983441670,-1093.0,0.00019911,2]
[396477386,1764983441680,-482.0,0.00019911,2]
[396477387,1764983441689,-558.76,0.00019944,2]
[396477388,1764983441698,-41698.7569916,0.00019945,2]
[396477389,1764983441707,-151.0,0.00019953,2]
[396477390,1764983441716,-620.0,0.00019953,2]
[396477391,1764983441726,-574.12855637,0.00019953,2]
[396477392,1764983441735,-500.0,0.00019953,2]
[396477393,1764983441744,-500.0,0.00019953,2]
[396477394,1764983441753,-500.0,0.00019953,2]
[396477395,1764983441762,-500.0,0.00019953,2]
[396477396,1764983441771,-326.04563648,0.00019953,2]
[396477397,1764983441781,-186.93351974,0.00019953,2]
[396477398,1764983441791,-500.0,0.00019953,2]
[396477399,1764983441800,-250.0,0.00019953,2]
[396477400,1764983441809,-500.0,0.00019953,2]
[396477401,1764983441819,-250.0,0.00019953,2]
[396477402,1764983441828,-165.12345001,0.00019953,2]
[396477403,1764983441842,-500.0,0.00019953,2]
[396477404,1764983441852,-250.0,0.00019953,2]
[396477405,1764983441862,-500.0,0.00019953,2]
[396477406,1764983441875,-500.0,0.00019953,2]
[396477407,1764983441888,-250.0,0.00019953,2]
[396477408,1764983441899,-500.0,0.00019953,2]
[396477409,1764983441909,-500.0,0.00019953,2]
[396477410,1764983441920,-153.46407999,0.00019953,2]
[396477411,1764983441931,-500.0,0.00019953,2]
[396477412,1764983441942,-500.0,0.00019953,2]
[396477413,1764983441952,-500.0,0.00019953,2]
[396477414,1764983441962,-500.0,0.00019953,2]
[396477415,1764983441972,-500.0,0.00019953,2]
[396477416,1764983441984,-500.0,0.00019953,2]
[396477417,1764983441993,-500.0,0.00019953,2]
[396477418,1764983442004,-1000.0,0.00019953,2]
[396477419,1764983442014,-500.0,0.00019953,2]
[396477420,1764983442024,-1000.0,0.00019953,2]
[396477421,1764983442033,-500.0,0.00019953,2]
[396477422,1764983442043,-1000.0,0.00019953,2]
[396477423,1764983442052,-500.0,0.00019953,2]
[396477424,1764983442062,-1000.0,0.00019953,2]
[396477425,1764983442072,-500.0,0.00019953,2]
[396477426,1764983442082,-1000.0,0.00019953,2]
[396477427,1764983442092,-2000.0,0.00019953,2]
[396477428,1764983442102,-1000.0,0.00019953,2]
[396477429,1764983442112,-1000.0,0.00019953,2]
[396477430,1764983442123,-1000.0,0.00019953,2]
[396477431,1764983442133,-2000.0,0.00019953,2]
[396477432,1764983442144,-2000.0,0.00019953,2]
[396477433,1764983442154,-1000.0,0.00019953,2]
[396477434,1764983442164,-2000.0,0.00019953,2]
[396477435,1764983442174,-1000.0,0.00019953,2]
[396477436,1764983442185,-2000.0,0.00019953,2]
[396477437,1764983442195,-1000.0,0.00019953,2]
[396477438,1764983442204,-2000.0,0.00019953,2]
[396477439,1764983442214,-1000.0,0.00019953,2]
[396477440,1764983442223,-1000.0,0.00019953,2]
[396477441,1764983442234,-484.67943684,0.00019953,2]
[396477442,1764983442244,-2000.0,0.00019953,2]
[396477443,1764983442253,-500.0,0.00019953,2]
[396477444,1764983442262,-500.0,0.00019953,2]
[396477445,1764983442272,-151.0,0.00019953,2]
[396477446,1764983442281,-500.0,0.00019953,2]
[396477447,1764983442290,-151.0,0.00019953,2]
[396477448,1764983442299,-500.0,0.00019953,2]
[396477449,1764983442311,-500.0,0.00019953,2]
[396477450,1764983442320,-500.0,0.00019953,2]
[396477451,1764983442329,-1000.0,0.00019953,2]
[396477452,1764983442343,-500.0,0.00019953,2]
[396477453,1764983442353,-1000.0,0.00019953,2]
[396477454,1764983442362,-500.0,0.00019953,2]
[396477455,1764983442372,-1000.0,0.00019953,2]
[396477456,1764983442382,-500.0,0.00019953,2]
[396477457,1764983442392,-1000.0,0.00019953,2]
[396477458,1764983442402,-500.0,0.00019953,2]
[396477459,1764983442413,-1000.0,0.00019953,2]
[396477460,1764983442423,-500.0,0.00019953,2]
[396477461,1764983442431,-1000.0,0.00019953,2]
[396477462,1764983442441,-1000.0,0.00019953,2]
[396477463,1764983442451,-500.0,0.00019953,2]
[396477464,1764983442460,-500.0,0.00019953,2]
[396477465,1764983442470,-500.0,0.00019953,2]
[396477466,1764983442479,-500.0,0.00019953,2]
[396477467,1764983442489,-500.0,0.00019953,2]
[396477468,1764983442499,-500.0,0.00019953,2]
[396477469,1764983442508,-500.0,0.00019953,2]
[396477470,1764983442517,-500.0,0.00019953,2]
[396477471,1764983442527,-500.0,0.00019953,2]
[396477472,1764983442536,-500.0,0.00019953,2]
[396477473,1764983442546,-500.0,0.00019953,2]
[396477474,1764983442555,-500.0,0.00019953,2]
[396477475,1764983442564,-500.0,0.00019953,2]
[396477476,1764983442574,-500.0,0.00019953,2]
[396477477,1764983442584,-578.20924308,0.00019953,2]
[396477478,1764983442592,-500.0,0.00019953,2]
[396477479,1764983442601,-500.0,0.00019953,2]
[396477480,1764983442611,-500.0,0.00019953,2]
[396477481,1764983442622,-500.0,0.00019953,2]
[396477483,1764983442631,-500.0,0.00019953,2]
[396477486,1764983442642,-500.0,0.00019953,2]
[396477488,1764983442652,-500.0,0.00019953,2]
[396477489,1764983442661,-500.0,0.00019953,2]
[396477492,1764983442671,-151.0,0.00019953,2]
[396477494,1764983442680,-151.0,0.00019953,2]
[396477496,1764983442690,-300.0,0.00019953,2]
[396477498,1764983442699,-4000.0,0.00019953,2]
[396477500,1764983442708,-4000.0,0.00019953,2]
[396477502,1764983442717,-4000.0,0.00019953,2]
[396477504,1764983442726,-4000.0,0.00019953,2]
[396477506,1764983442735,-4000.0,0.00019953,2]
[396477508,1764983442744,-4000.0,0.00019953,2]
[396477510,1764983442754,-4000.0,0.00019953,2]
[396477512,1764983442765,-4000.0,0.00019953,2]
[396477514,1764983442775,-4000.0,0.00019953,2]
[396477516,1764983442786,-4000.0,0.00019953,2]
[396477518,1764983442796,-4000.0,0.00019953,2]
[396477520,1764983442805,-693.3919763,0.00019953,2]
[396477521,1764983442814,-277.35679052,0.00019953,2]
[396477522,1764983442823,-25470.83204357,0.0002,2]
[396477523,1764983442832,-4631.77753707,0.0002,4]
[396477524,1764983442841,-17598.29391641,0.0002,14]
[396477525,1764983442850,-151.0,0.0002,2]
[396477526,1764983442860,-1523.1,0.00020004,2]
[396477527,1764983442869,-394.1,0.00020028,2]
[396477528,1764983442878,-1093.0,0.00020048,2]
[396477529,1764983442888,-482.0,0.00020048,2]
[396477530,1764983442898,-151.0,0.00020051,2]
[396477531,1764983442909,-151.0,0.00020051,2]
[396477532,1764983442918,-150.0,0.0002007,2]
[396477533,1764983442926,-1000.0,0.00020116,2]
[396477534,1764983442936,-500.0,0.00020118,2]
[396477535,1764983442945,-166.68,0.00020126,2]
[396477536,1764983442955,-791.5411168,0.00020149,2]
[396477537,1764983442964,-1093.0,0.00020185,2]
[396477538,1764983442973,-482.0,0.00020185,2]
[396477539,1764983442982,-1081.96771433,0.00020189,2]
[396477540,1764983442991,-363.51,0.00020244,2]
[396477541,1764983443000,-162.380719,0.00020274,2]
[396477542,1764983443010,-1523.1,0.00020278,2]
[396477543,1764983443019,-629.27,0.00020309,2]
[396477544,1764983443029,-1093.0,0.00020322,2]
[396477545,1764983443038,-482.0,0.00020322,2]
[396477546,1764983443048,-1093.0,0.00020459,2]
[396477547,1764983443057,-482.0,0.00020459,2]
[396477548,1764983443067,-240.87,0.00020476,2]
[396477549,1764983443076,-595.37131296,0.00020501,2]
[396477550,1764983443086,-1000.0,0.00020501,2]
[396477551,1764983443096,-151.0,0.00020501,2]
[396477552,1764983443106,-151.0,0.00020501,2]
[396477553,1764983443115,-719.04747942,0.00020501,2]
[396477554,1764983443125,-151.0,0.00020548,2]
[396477555,1764983443137,-151.0,0.00020548,2]
[396477556,1764983443146,-151.0,0.00020548,2]
[396477557,1764983443155,-1523.1,0.00020552,2]
[396477558,1764983443165,-1093.0,0.00020596,2]
[396477559,1764983443174,-482.0,0.00020596,2]
[396477560,1764983443183,-24922.80532159,0.00020602,2]
[396477561,1764983443193,-191.55,0.0002063,2]
[396477562,1764983443202,-21258.30892145,0.00020638,2]
[396477563,1764983443294,-11707.04794534,0.00020638,2]
[396477564,1764983443321,-7969.62918388,0.00020638,2]
[396477565,1764983443335,-339.36,0.00020643,2]
[396477566,1764983443344,-1093.0,0.00020733,2]
[396477567,1764983443355,-482.0,0.00020733,2]
[396477568,1764983443364,-1600.0,0.00020764,2]
[396477569,1764983443375,-1000.0,0.00020795,2]
[396477570,1764983443385,-156.7,0.00020799,2]
[396477571,1764983443395,-168.3888056,0.00020822,2]
[396477572,1764983443407,-1523.1,0.00020826,2]
[396477573,1764983443415,-153.63,0.00020828,2]
[396477574,1764983443424,-1093.0,0.0002087,2]
[396477575,1764983443433,-482.0,0.0002087,2]
[396477576,1764983443442,-240.87,0.00020937,2]
[396477577,1764983443451,-5267.59,0.00020969,2]
[396477578,1764983443460,-2000.0,0.00021,2]
[396477579,1764983443470,-1093.0,0.00021007,2]
[396477580,1764983443480,-482.0,0.00021007,2]
[396477581,1764983443489,-1494.68360191,0.00021016,2]
[396477582,1764983443498,-617.40005154,0.00021049,2]
[396477583,1764983443508,-1000.0,0.00021049,2]
[396477584,1764983443518,-151.0,0.00021049,2]
[396477585,1764983443527,-825.50162876,0.00021049,2]
[396477586,1764983443537,-364.97658679,0.00021086,2]
[396477587,1764983443547,-1523.1,0.000211,2]
[396477588,1764983443556,-313.4,0.00021108,2]
[396477589,1764983443566,-1095.03987881,0.00021144,2]
[396477590,1764983443576,-482.76804289,0.00021144,2]
[396477591,1764983443586,-363.51,0.00021164,2]
[396477592,1764983443595,-823.0,0.00021175,2]
[396477593,1764983443606,-1000.0,0.000212,2]
[396477594,1764983443616,-394.1,0.00021247,2]
[396477595,1764983443625,-1000.0,0.00021285,2]
[396477596,1764983443634,-151.0,0.00021322,2]
[396477597,1764983443643,-642.94,0.00021322,2]
[396477598,1764983443653,-311.1,0.00021322,2]
[396477599,1764983443662,-287.61899177,0.00021322,2]
[396477600,1764983443672,-174.61919141,0.0002137,2]
[396477601,1764983443680,-1523.1,0.00021374,2]
[396477602,1764983443690,-24922.80532159,0.00021393,2]
[396477603,1764983443701,-150.0,0.00021402,2]
[396477604,1764983443711,-4400.47236084,0.00021421,2]
[396477605,1764983445151,-298.0,0.00017567,2]
[396477606,1764983445162,-196.0607587,0.00019049,2]
[396477607,1764983445172,-36534.51368983,0.00021421,2]
[396477608,1764983445181,-3292.0,0.00021478,2]
[396477609,1764983445190,-1081.96771433,0.00021556,2]
[396477610,1764983445200,-156.7,0.00021574,2]
[396477611,1764983445209,-1000.0,0.00021584,2]
[396477612,1764983445219,-640.24385345,0.00021597,2]
[396477613,1764983445228,-1000.0,0.00021597,2]
[396477614,1764983445237,-151.0,0.00021597,2]
[396477615,1764983445247,-1523.1318068,0.00021648,2]
[396477616,1764983445257,-171.53,0.00021659,2]
[396477617,1764983445268,-150.0,0.00021674,4]
[396477618,1764983445279,-150.0,0.00021674,4]
[396477619,1764983445289,-500.0,0.00021808,2]
[396477620,1764983445298,-153.63,0.0002182,2]
[396477621,1764983445308,-41698.7569916,0.0002189,2]
[396477622,1764983445318,-1173.61405499,0.000219,2]
[396477623,1764983445327,-5000.0,0.00021918,2]
[396477624,1764983445340,-151.0,0.00021918,2]
[396477625,1764983445350,-153.0,0.00021918,2]
[396477626,1764983445359,-500.0,0.00021918,2]
[396477627,1764983445371,-181.08010149,0.00021918,2]
[396477628,1764983445380,-165.0,0.00022,2]
[396477629,1764983445389,-500.0,0.00022055,2]
[396477630,1764983445399,-363.51,0.00022084,2]
[396477631,1764983445408,-161.58167134,0.00022084,2]
[396477632,1764983445419,-9462.21,0.000221,7]
[396477633,1764983445428,-300.0,0.00022105,2]
[396477634,1764983445439,-671.68591702,0.00022105,2]
[396477635,1764983445448,-151.0,0.00022107,2]
[396477636,1764983445457,-151.0,0.00022107,2]
[396477637,1764983445467,-663.93287602,0.00022145,2]
[396477638,1764983445477,-1000.0,0.00022145,2]
[396477639,1764983445486,-156.16992427,0.00022145,2]
[396477640,1764983445495,-1494.68360191,0.00022179,2]
[396477642,1764983445504,-24922.80532159,0.00022184,2]
[396477643,1764983445514,-418.47,0.00022192,2]
[396477644,1764983445524,-500.0,0.00022192,2]
[396477645,1764983445534,-40934.98605067,0.00022205,2]
[396477647,1764983445543,-500.0,0.00022329,2]
[396477648,1764983445552,-2751.0,0.00022418,2]
[396477649,1764983445563,-500.0,0.00022466,2]
[396477650,1764983445572,-187.78006525,0.00022466,2]
[396477651,1764983445582,-1000.0,0.00022511,2]
[396477652,1764983445591,-500.0,0.00022603,2]
[396477653,1764983445601,-262.74,0.00022603,2]
[396477654,1764983445610,-151.0,0.00022614,2]
[396477655,1764983445619,-300.0,0.0002267,2]
[396477656,1764983445628,-300.0,0.0002267,2]
[396477657,1764983445642,-217026.99854121,0.00022671,2]
[396477658,1764983445804,-150121.67145879,0.00022671,2]
[396477659,1764983445813,-151.0,0.00022672,2]
[396477660,1764983445823,-1852.42,0.00022689,2]
[396477661,1764983445838,-620.0,0.00022691,2]
[396477662,1764983445847,-322.6107,0.00022691,2]
[396477663,1764983445857,-298.26089446,0.00022691,2]
[396477664,1764983445866,-151.0,0.00022692,2]
[396477665,1764983445876,-599.60298507,0.00022692,2]
[396477666,1764983445886,-688.49839244,0.00022693,2]
[396477667,1764983445895,-1000.0,0.00022693,2]
[396477668,1764983445905,-151.0,0.00022693,2]
[396477669,1764983445914,-1000.0,0.00022724,2]
[396477670,1764983445923,-500.0,0.0002274,2]
[396477671,1764983445934,-262.74,0.0002274,2]
[396477672,1764983445944,-500.0,0.00022745,2]
[396477673,1764983445955,-2994.0,0.00022749,2]
[396477674,1764983445965,-2994.0,0.0002277,2]
[396477676,1764983445975,-500.0,0.00022793,2]
[396477677,1764983445985,-152.0,0.00022829,3]
[396477678,1764983445995,-1600.0,0.0002284,2]
[396477679,1764983446005,-500.0,0.00022877,2]
[396477680,1764983446014,-262.74,0.00022877,2]
[396477681,1764983446024,-168.0,0.00022883,2]
[396477682,1764983446037,-2994.0,0.00022894,2]
[396477683,1764983446046,-500.0,0.00022922,2]
[396477684,1764983446055,-1081.96771433,0.00022922,2]
[396477685,1764983446066,-1000.0,0.00022949,2]
[396477686,1764983446075,-300.0,0.00022974,2]
[396477687,1764983446084,-24922.80532159,0.00022975,2]